[Event "Early-Titled-Tuesday-Blitz-August-29-2023"]
[Site "Chess.com"]
[Date "2023.08.29"]
[Round "9"]
[White "Tomytoteph"]
[Black "Barbus89"]
[Result "0-1"]
[WhiteElo "2617"]
[BlackElo "2535"]
[TimeControl "180+1"]
[EndTime "9:41:33 PDT"]
[Termination "Barbus89 won by resignation"]

1. e4 {[%clk 0:02:49.3]} 1... c6 {[%clk 0:02:59.7]} 2. d4 {[%clk 0:02:48.5]}
2... d5 {[%clk 0:03:00.4]} 3. Nd2 {[%clk 0:02:48]} 3... dxe4 {[%clk 0:03:00.4]}
4. Nxe4 {[%clk 0:02:48.5]} 4... Nf6 {[%clk 0:03:01.1]} 5. Nxf6+ {[%clk 0:02:49]}
5... exf6 {[%clk 0:03:01.7]} 6. Nf3 {[%clk 0:02:49.7]} 6... Bd6 {[%clk
0:03:01.9]} 7. Be3 {[%clk 0:02:49.8]} 7... O-O {[%clk 0:03:01.6]} 8. Qd2 {[%clk
0:02:50.3]} 8... Re8 {[%clk 0:03:01.1]} 9. Bd3 {[%clk 0:02:50]} 9... Be6 {[%clk
0:03:00.7]} 10. a3 {[%clk 0:02:30.7]} 10... Qe7 {[%clk 0:02:50.4]} 11. c4 {[%clk
0:02:12.5]} 11... Nd7 {[%clk 0:02:49.5]} 12. O-O {[%clk 0:02:08]} 12... Nf8
{[%clk 0:02:46.8]} 13. Rfe1 {[%clk 0:02:06.9]} 13... Qd7 {[%clk 0:02:43.8]} 14.
Rad1 {[%clk 0:01:56.8]} 14... Ng6 {[%clk 0:02:40.1]} 15. Bf1 {[%clk 0:01:44.3]}
15... Bg4 {[%clk 0:02:37.3]} 16. d5 {[%clk 0:01:39.2]} 16... Bxf3 {[%clk
0:02:06.1]} 17. gxf3 {[%clk 0:01:37.6]} 17... c5 {[%clk 0:02:03.2]} 18. b4
{[%clk 0:01:34.1]} 18... b6 {[%clk 0:01:59.7]} 19. Bg2 {[%clk 0:01:09]} 19...
Qf5 {[%clk 0:01:43.3]} 20. bxc5 {[%clk 0:01:08.3]} 20... bxc5 {[%clk 0:01:44]}
21. Qd3 {[%clk 0:01:03.7]} 21... Qh5 {[%clk 0:01:41.8]} 22. Bd2 {[%clk
0:00:56.9]} 22... Qxh2+ {[%clk 0:01:34.5]} 23. Kf1 {[%clk 0:00:54.9]} 23... Nh4
{[%clk 0:01:34.2]} 24. Re4 {[%clk 0:00:12.3]} 24... Qxg2+ {[%clk 0:01:30.2]} 25.
Ke2 {[%clk 0:00:12.5]} 25... Nxf3 {[%clk 0:01:14.1]} 0-1

[Event "Early-Titled-Tuesday-Blitz-August-29-2023"]
[Site "Chess.com"]
[Date "2023.08.29"]
[Round "9"]
[White "Boundless_Strike"]
[Black "Good_Knight_Kiss"]
[Result "0-1"]
[WhiteElo "2501"]
[BlackElo "2393"]
[TimeControl "180+1"]
[EndTime "9:41:36 PDT"]
[Termination "Good_Knight_Kiss won by resignation"]

1. d4 {[%clk 0:02:58.3]} 1... Nf6 {[%clk 0:02:59.2]} 2. Nc3 {[%clk 0:02:57.4]}
2... d5 {[%clk 0:02:58.5]} 3. e4 {[%clk 0:02:57.2]} 3... dxe4 {[%clk 0:02:58.3]}
4. f3 {[%clk 0:02:56.6]} 4... exf3 {[%clk 0:02:58.1]} 5. Nxf3 {[%clk 0:02:56.7]}
5... g6 {[%clk 0:02:58.4]} 6. Bc4 {[%clk 0:02:52.6]} 6... Bg7 {[%clk 0:02:58.4]}
7. h4 {[%clk 0:02:50.8]} 7... O-O {[%clk 0:02:45]} 8. h5 {[%clk 0:02:50.7]} 8...
Bg4 {[%clk 0:02:44.3]} 9. hxg6 {[%clk 0:02:43.7]} 9... hxg6 {[%clk 0:02:42.8]}
10. Bh6 {[%clk 0:02:23.4]} 10... Bxh6 {[%clk 0:02:32.8]} 11. Rxh6 {[%clk
0:02:22.7]} 11... Kg7 {[%clk 0:02:33.2]} 12. Qd2 {[%clk 0:01:55.2]} 12... Bxf3
{[%clk 0:02:32.5]} 13. gxf3 {[%clk 0:01:12.5]} 13... Nc6 {[%clk 0:02:22.9]} 14.
O-O-O {[%clk 0:00:30.2]} 14... Qxd4 {[%clk 0:02:06.8]} 15. Bd3 {[%clk 0:00:29]}
15... Ne5 {[%clk 0:01:40.4]} 16. Qh2 {[%clk 0:00:28.8]} 16... Rh8 {[%clk
0:01:11.5]} 17. Rh1 {[%clk 0:00:26]} 17... Qe3+ {[%clk 0:01:05.1]} 18. Qd2
{[%clk 0:00:17.7]} 18... Nxd3+ {[%clk 0:01:03]} 19. cxd3 {[%clk 0:00:17.8]}
19... Qxd2+ {[%clk 0:01:03.1]} 20. Kxd2 {[%clk 0:00:18.7]} 20... Rxh6 {[%clk
0:01:03.1]} 21. Rxh6 {[%clk 0:00:19.5]} 21... Kxh6 {[%clk 0:01:03.8]} 22. Nb5
{[%clk 0:00:20.1]} 22... c6 {[%clk 0:01:00.3]} 0-1

[Event "Early-Titled-Tuesday-Blitz-August-29-2023"]
[Site "Chess.com"]
[Date "2023.08.29"]
[Round "9"]
[White "AleksandraMilovic"]
[Black "Muracle"]
[Result "0-1"]
[WhiteElo "2129"]
[BlackElo "2496"]
[TimeControl "180+1"]
[EndTime "9:41:55 PDT"]
[Termination "Muracle won by checkmate"]

1. e4 {[%clk 0:02:54.7]} 1... c5 {[%clk 0:02:59.9]} 2. Nf3 {[%clk 0:02:54.1]}
2... Nc6 {[%clk 0:03:00.6]} 3. c4 {[%clk 0:02:52.7]} 3... e5 {[%clk 0:03:00.5]}
4. Nc3 {[%clk 0:02:53.2]} 4... d6 {[%clk 0:03:00.9]} 5. Be2 {[%clk 0:02:53.3]}
5... Be7 {[%clk 0:03:01]} 6. O-O {[%clk 0:02:53.7]} 6... Nf6 {[%clk 0:03:01.5]}
7. d3 {[%clk 0:02:54]} 7... O-O {[%clk 0:03:01.9]} 8. Rb1 {[%clk 0:02:54.5]}
8... Ne8 {[%clk 0:02:59]} 9. a3 {[%clk 0:02:54.5]} 9... Nc7 {[%clk 0:02:28.8]}
10. b4 {[%clk 0:02:45.2]} 10... b6 {[%clk 0:02:28.7]} 11. b5 {[%clk 0:02:42.8]}
11... Nd4 {[%clk 0:02:26.3]} 12. Nxd4 {[%clk 0:02:41.7]} 12... cxd4 {[%clk
0:02:24.3]} 13. Nd5 {[%clk 0:02:41.1]} 13... Nxd5 {[%clk 0:02:19.9]} 14. exd5
{[%clk 0:02:42]} 14... f5 {[%clk 0:02:20.2]} 15. f4 {[%clk 0:02:30.8]} 15... Bf6
{[%clk 0:02:15.6]} 16. a4 {[%clk 0:02:19.8]} 16... e4 {[%clk 0:02:15.9]} 17.
dxe4 {[%clk 0:02:18]} 17... fxe4 {[%clk 0:02:16.8]} 18. Bg4 {[%clk 0:02:17.3]}
18... Bxg4 {[%clk 0:02:07.4]} 19. Qxg4 {[%clk 0:02:18.2]} 19... Qc8 {[%clk
0:02:08.3]} 20. f5 {[%clk 0:02:15.2]} 20... Re8 {[%clk 0:01:52.7]} 21. Bg5
{[%clk 0:01:59.3]} 21... Qd8 {[%clk 0:01:31.8]} 22. Bxf6 {[%clk 0:01:50.1]}
22... Qxf6 {[%clk 0:01:32.7]} 23. Rf4 {[%clk 0:01:50.2]} 23... Rac8 {[%clk
0:00:59.7]} 24. Rxe4 {[%clk 0:01:47.4]} 24... Rxe4 {[%clk 0:00:51.3]} 25. Qxe4
{[%clk 0:01:48.3]} 25... Rxc4 {[%clk 0:00:51.8]} 26. Qe8+ {[%clk 0:01:42.3]}
26... Qf8 {[%clk 0:00:51.9]} 27. Qe6+ {[%clk 0:01:42.9]} 27... Kh8 {[%clk
0:00:52.2]} 28. Rf1 {[%clk 0:01:37.9]} 28... Rc7 {[%clk 0:00:39.5]} 29. f6
{[%clk 0:01:32.8]} 29... gxf6 {[%clk 0:00:25.2]} 30. Rxf6 {[%clk 0:01:33.7]}
30... Qe7 {[%clk 0:00:25.4]} 31. Qxd6 {[%clk 0:01:16.6]} 31... Rc1+ {[%clk
0:00:17.3]} 32. Kf2 {[%clk 0:01:06]} 32... Qe3# {[%clk 0:00:16.3]} 0-1

[Event "Early-Titled-Tuesday-Blitz-August-29-2023"]
[Site "Chess.com"]
[Date "2023.08.29"]
[Round "9"]
[White "snowlord"]
[Black "OparinGrigoriy"]
[Result "1-0"]
[WhiteElo "2926"]
[BlackElo "2973"]
[TimeControl "180+1"]
[EndTime "9:41:56 PDT"]
[Termination "snowlord won by resignation"]

1. e4 {[%clk 0:03:00.9]} 1... e5 {[%clk 0:03:00.6]} 2. Nf3 {[%clk 0:03:00.7]}
2... Nc6 {[%clk 0:03:01.4]} 3. Bb5 {[%clk 0:02:57.6]} 3... a6 {[%clk 0:03:02]}
4. Ba4 {[%clk 0:02:57.7]} 4... d6 {[%clk 0:03:02.4]} 5. c4 {[%clk 0:02:56.5]}
5... Bg4 {[%clk 0:03:00.9]} 6. Nc3 {[%clk 0:02:56.3]} 6... Nf6 {[%clk
0:02:53.6]} 7. d3 {[%clk 0:02:49.1]} 7... Nd7 {[%clk 0:02:48.9]} 8. h3 {[%clk
0:02:42.5]} 8... Bxf3 {[%clk 0:02:48.2]} 9. Qxf3 {[%clk 0:02:43.4]} 9... Nd4
{[%clk 0:02:48.8]} 10. Qg3 {[%clk 0:02:34.1]} 10... c6 {[%clk 0:02:48.9]} 11.
O-O {[%clk 0:02:30.1]} 11... Nc5 {[%clk 0:02:37.4]} 12. Bd1 {[%clk 0:02:25.2]}
12... Nce6 {[%clk 0:02:35.2]} 13. Kh1 {[%clk 0:01:42.4]} 13... h5 {[%clk
0:02:31.6]} 14. b4 {[%clk 0:01:37.5]} 14... g6 {[%clk 0:02:27.7]} 15. Rb1 {[%clk
0:01:30.7]} 15... h4 {[%clk 0:02:27.5]} 16. Qh2 {[%clk 0:01:27.7]} 16... Bh6
{[%clk 0:02:26]} 17. Be3 {[%clk 0:01:27.6]} 17... Kf8 {[%clk 0:02:22.4]} 18. Qg1
{[%clk 0:01:21.2]} 18... Kg7 {[%clk 0:02:21.4]} 19. f4 {[%clk 0:01:19]} 19...
Bxf4 {[%clk 0:02:18.2]} 20. Rxf4 {[%clk 0:01:19.1]} 20... exf4 {[%clk
0:02:02.5]} 21. Bxd4+ {[%clk 0:01:19.3]} 21... Nxd4 {[%clk 0:02:03.4]} 22. Qxd4+
{[%clk 0:01:19.5]} 22... Qf6 {[%clk 0:02:04.3]} 23. Ne2 {[%clk 0:01:15.9]} 23...
Qxd4 {[%clk 0:02:01.9]} 24. Nxd4 {[%clk 0:01:16]} 24... d5 {[%clk 0:02:00]} 25.
exd5 {[%clk 0:01:10.7]} 25... cxd5 {[%clk 0:02:00.9]} 26. c5 {[%clk 0:01:06.1]}
26... Rhe8 {[%clk 0:02:01]} 27. Bf3 {[%clk 0:01:06.4]} 27... Re3 {[%clk
0:01:58.9]} 28. Rd1 {[%clk 0:01:06.7]} 28... a5 {[%clk 0:01:48.9]} 29. b5 {[%clk
0:01:06.5]} 29... Rc8 {[%clk 0:01:49.4]} 30. c6 {[%clk 0:01:06.9]} 30... bxc6
{[%clk 0:01:49.1]} 31. bxc6 {[%clk 0:01:07.6]} 31... Kf6 {[%clk 0:01:45.3]} 32.
Bg4 {[%clk 0:01:02.2]} 32... Rc7 {[%clk 0:01:43.8]} 33. Rc1 {[%clk 0:01:02.6]}
33... Ke7 {[%clk 0:01:36]} 34. Nb5 {[%clk 0:01:02.7]} 34... Kd8 {[%clk
0:01:36.7]} 35. Nxc7 {[%clk 0:01:02.9]} 35... Kxc7 {[%clk 0:01:37.6]} 36. Rc3
{[%clk 0:01:00.5]} 36... d4 {[%clk 0:01:31.8]} 37. Ra3 {[%clk 0:00:45.5]} 37...
Kxc6 {[%clk 0:01:30.5]} 38. Kg1 {[%clk 0:00:46]} 38... Kb5 {[%clk 0:01:28.2]}
39. Rb3+ {[%clk 0:00:45]} 39... Kc5 {[%clk 0:01:28.4]} 40. a4 {[%clk 0:00:44.6]}
40... Kd6 {[%clk 0:01:19.6]} 41. Kf2 {[%clk 0:00:44.8]} 41... Re5 {[%clk
0:01:18.3]} 42. Rb6+ {[%clk 0:00:43.8]} 42... Kc7 {[%clk 0:01:16.7]} 43. Rf6
{[%clk 0:00:43.8]} 43... Rc5 {[%clk 0:01:13.8]} 44. Rxf7+ {[%clk 0:00:43.6]}
44... Kd6 {[%clk 0:01:14.2]} 45. Rxf4 {[%clk 0:00:44.4]} 45... Ke5 {[%clk
0:01:12.1]} 46. Re4+ {[%clk 0:00:44.6]} 46... Kd5 {[%clk 0:01:12.8]} 47. Bf3
{[%clk 0:00:44.4]} 47... Rc3 {[%clk 0:01:13.5]} 48. Rxh4+ {[%clk 0:00:43.8]}
48... Kc5 {[%clk 0:01:12.7]} 49. Be4 {[%clk 0:00:44.7]} 49... Kb4 {[%clk
0:01:10.8]} 1-0

[Event "Early-Titled-Tuesday-Blitz-August-29-2023"]
[Site "Chess.com"]
[Date "2023.08.29"]
[Round "9"]
[White "garfield_pg"]
[Black "HamedWafa4"]
[Result "1/2-1/2"]
[WhiteElo "2386"]
[BlackElo "2539"]
[TimeControl "180+1"]
[EndTime "9:41:59 PDT"]
[Termination "Game drawn by repetition"]

1. d4 {[%clk 0:03:00.9]} 1... Nf6 {[%clk 0:02:59.8]} 2. Bf4 {[%clk 0:03:00.6]}
2... b6 {[%clk 0:02:58.7]} 3. e3 {[%clk 0:02:57.9]} 3... Bb7 {[%clk 0:02:59.2]}
4. Nf3 {[%clk 0:02:52.1]} 4... e6 {[%clk 0:02:59.2]} 5. Bd3 {[%clk 0:02:48.8]}
5... Bd6 {[%clk 0:02:56.9]} 6. O-O {[%clk 0:02:46.9]} 6... Bxf4 {[%clk
0:02:56.1]} 7. exf4 {[%clk 0:02:47.8]} 7... O-O {[%clk 0:02:56.1]} 8. c3 {[%clk
0:02:48.1]} 8... d6 {[%clk 0:02:52.6]} 9. Re1 {[%clk 0:02:47.7]} 9... Nbd7
{[%clk 0:02:51.7]} 10. Nbd2 {[%clk 0:02:47.9]} 10... Re8 {[%clk 0:02:51.6]} 11.
Qe2 {[%clk 0:02:44.8]} 11... a5 {[%clk 0:02:50.5]} 12. a4 {[%clk 0:02:42]} 12...
Nf8 {[%clk 0:02:35.9]} 13. Ne4 {[%clk 0:02:34.1]} 13... Ng6 {[%clk 0:02:31.5]}
14. g3 {[%clk 0:02:33.3]} 14... Qd7 {[%clk 0:02:09.4]} 15. Nxf6+ {[%clk
0:02:19.5]} 15... gxf6 {[%clk 0:02:10.3]} 16. Be4 {[%clk 0:02:17.1]} 16... c6
{[%clk 0:01:59.1]} 17. Qc2 {[%clk 0:02:09.3]} 17... f5 {[%clk 0:01:57.9]} 18.
Bd3 {[%clk 0:02:08.2]} 18... c5 {[%clk 0:01:56.4]} 19. Bb5 {[%clk 0:01:51.6]}
19... Qc7 {[%clk 0:01:35]} 20. Qe2 {[%clk 0:01:13.3]} 20... Red8 {[%clk
0:01:27.9]} 21. dxc5 {[%clk 0:01:09.7]} 21... dxc5 {[%clk 0:01:17.4]} 22. Rad1
{[%clk 0:01:04.9]} 22... Rxd1 {[%clk 0:01:10.9]} 23. Rxd1 {[%clk 0:01:05.8]}
23... Rd8 {[%clk 0:01:10.6]} 24. Ne5 {[%clk 0:00:26.7]} 24... Rxd1+ {[%clk
0:01:03]} 25. Qxd1 {[%clk 0:00:27.6]} 25... Nxe5 {[%clk 0:01:01.9]} 26. fxe5
{[%clk 0:00:25.2]} 26... Qxe5 {[%clk 0:01:01.7]} 27. Qd8+ {[%clk 0:00:25.2]}
27... Kg7 {[%clk 0:00:57]} 28. Qg5+ {[%clk 0:00:21.4]} 28... Kf8 {[%clk
0:00:50.6]} 29. Qd8+ {[%clk 0:00:22.3]} 29... Kg7 {[%clk 0:00:50.2]} 30. Qg5+
{[%clk 0:00:23.2]} 30... Kh8 {[%clk 0:00:50.1]} 31. Qd8+ {[%clk 0:00:24.1]}
31... Kg7 {[%clk 0:00:49.6]} 1/2-1/2

[Event "Early-Titled-Tuesday-Blitz-August-29-2023"]
[Site "Chess.com"]
[Date "2023.08.29"]
[Round "9"]
[White "Aswathchess"]
[Black "AdvanceGuard4"]
[Result "1-0"]
[WhiteElo "2536"]
[BlackElo "2633"]
[TimeControl "180+1"]
[EndTime "9:42:06 PDT"]
[Termination "Aswathchess won by resignation"]

1. e4 {[%clk 0:03:00.9]} 1... c6 {[%clk 0:02:57.7]} 2. d4 {[%clk 0:03:00.2]}
2... d5 {[%clk 0:02:58.4]} 3. Nc3 {[%clk 0:03:00.8]} 3... dxe4 {[%clk 0:02:58]}
4. Nxe4 {[%clk 0:03:01.7]} 4... Bf5 {[%clk 0:02:57.8]} 5. Ng3 {[%clk 0:03:01.9]}
5... Bg6 {[%clk 0:02:57.7]} 6. h4 {[%clk 0:03:02.6]} 6... h6 {[%clk 0:02:56.3]}
7. Nf3 {[%clk 0:03:03.2]} 7... e6 {[%clk 0:02:55.8]} 8. Ne5 {[%clk 0:03:02.3]}
8... Bh7 {[%clk 0:02:56.1]} 9. Qh5 {[%clk 0:03:01.9]} 9... Qc7 {[%clk
0:02:34.8]} 10. Bc4 {[%clk 0:02:59]} 10... Nf6 {[%clk 0:02:33.6]} 11. Qe2 {[%clk
0:02:57.7]} 11... Bd6 {[%clk 0:02:18.5]} 12. Bf4 {[%clk 0:02:47.9]} 12... Nd5
{[%clk 0:02:13.1]} 13. Bd2 {[%clk 0:02:26.3]} 13... Nd7 {[%clk 0:02:07.3]} 14.
Nh5 {[%clk 0:02:14.5]} 14... Bxe5 {[%clk 0:01:24.8]} 15. dxe5 {[%clk 0:02:13.6]}
15... Qxe5 {[%clk 0:01:25.5]} 16. Qxe5 {[%clk 0:01:56.5]} 16... Nxe5 {[%clk
0:01:24.3]} 17. Nxg7+ {[%clk 0:01:45.8]} 17... Kf8 {[%clk 0:01:21.6]} 18. Bxd5
{[%clk 0:01:44]} 18... exd5 {[%clk 0:01:05.2]} 19. Bxh6 {[%clk 0:01:34.6]} 19...
Bxc2 {[%clk 0:00:28.2]} 20. Nf5+ {[%clk 0:01:31.6]} 20... Ke8 {[%clk 0:00:25.9]}
21. Bg7 {[%clk 0:01:28.7]} 21... Rh5 {[%clk 0:00:13.9]} 22. Ne3 {[%clk
0:01:17.5]} 22... Be4 {[%clk 0:00:07.9]} 23. f3 {[%clk 0:01:17.3]} 23... Nd3+
{[%clk 0:00:07.8]} 24. Kd2 {[%clk 0:01:16.1]} 24... Bg6 {[%clk 0:00:03.8]} 25.
g4 {[%clk 0:01:15.8]} 25... Rh7 {[%clk 0:00:03.9]} 26. Bf6 {[%clk 0:01:14.6]}
26... Nf4 {[%clk 0:00:02.4]} 27. h5 {[%clk 0:01:14.8]} 27... Bxh5 {[%clk
0:00:03]} 28. gxh5 {[%clk 0:01:14.6]} 28... Rxh5 {[%clk 0:00:03.9]} 29. Rxh5
{[%clk 0:01:12.7]} 29... Nxh5 {[%clk 0:00:04.8]} 30. Rh1 {[%clk 0:01:12.8]} 1-0

[Event "Early-Titled-Tuesday-Blitz-August-29-2023"]
[Site "Chess.com"]
[Date "2023.08.29"]
[Round "9"]
[White "gm_rashid"]
[Black "dennisodessa"]
[Result "0-1"]
[WhiteElo "2381"]
[BlackElo "2536"]
[TimeControl "180+1"]
[EndTime "9:42:10 PDT"]
[Termination "dennisodessa won on time"]

1. e4 {[%clk 0:03:00.9]} 1... e6 {[%clk 0:02:58.9]} 2. d4 {[%clk 0:03:00.1]}
2... d5 {[%clk 0:02:59.5]} 3. Nc3 {[%clk 0:03:00]} 3... Bb4 {[%clk 0:02:59.2]}
4. exd5 {[%clk 0:02:59.6]} 4... exd5 {[%clk 0:02:58.9]} 5. Bd3 {[%clk
0:02:59.8]} 5... Nf6 {[%clk 0:02:59.3]} 6. Ne2 {[%clk 0:02:58.7]} 6... O-O
{[%clk 0:02:53.9]} 7. O-O {[%clk 0:02:58.9]} 7... Bg4 {[%clk 0:02:50]} 8. f3
{[%clk 0:02:58.6]} 8... Bh5 {[%clk 0:02:49.3]} 9. Bg5 {[%clk 0:02:58.5]} 9... c6
{[%clk 0:02:49.1]} 10. Nf4 {[%clk 0:02:47.3]} 10... Bg6 {[%clk 0:02:46.4]} 11.
Nxg6 {[%clk 0:02:47.5]} 11... hxg6 {[%clk 0:02:44.8]} 12. Ne2 {[%clk 0:02:39.6]}
12... Nbd7 {[%clk 0:02:42.8]} 13. c3 {[%clk 0:02:38.8]} 13... Be7 {[%clk
0:02:43]} 14. Qc2 {[%clk 0:02:36.7]} 14... Re8 {[%clk 0:02:42.3]} 15. Nf4 {[%clk
0:02:34.2]} 15... Nh7 {[%clk 0:02:39.5]} 16. Bxe7 {[%clk 0:02:29.2]} 16... Qxe7
{[%clk 0:02:40.4]} 17. Rae1 {[%clk 0:02:05.5]} 17... Qxe1 {[%clk 0:02:33]} 18.
Rxe1 {[%clk 0:02:05.3]} 18... Rxe1+ {[%clk 0:02:33.9]} 19. Kf2 {[%clk
0:02:05.2]} 19... Re7 {[%clk 0:02:33]} 20. h3 {[%clk 0:01:50.6]} 20... Rae8
{[%clk 0:02:30.1]} 21. Kg3 {[%clk 0:01:36.7]} 21... Nhf6 {[%clk 0:02:28.9]} 22.
a4 {[%clk 0:01:31.3]} 22... Nh5+ {[%clk 0:02:16.1]} 23. Nxh5 {[%clk 0:01:28.3]}
23... gxh5 {[%clk 0:02:17]} 24. Kh4 {[%clk 0:01:16.1]} 24... Nf6 {[%clk
0:02:12.8]} 25. b4 {[%clk 0:01:10.1]} 25... a6 {[%clk 0:02:05.4]} 26. b5 {[%clk
0:01:08.9]} 26... axb5 {[%clk 0:02:06.3]} 27. axb5 {[%clk 0:01:09.1]} 27... cxb5
{[%clk 0:02:02.9]} 28. Bxb5 {[%clk 0:01:08.1]} 28... Rc8 {[%clk 0:02:03.8]} 29.
g4 {[%clk 0:00:39.5]} 29... hxg4 {[%clk 0:02:02.5]} 30. hxg4 {[%clk 0:00:39]}
30... Re3 {[%clk 0:01:50.7]} 31. Qf5 {[%clk 0:00:33.3]} 31... Rcxc3 {[%clk
0:01:50.3]} 32. Kg3 {[%clk 0:00:20.4]} 32... Rxf3+ {[%clk 0:01:47.9]} 33. Qxf3
{[%clk 0:00:20.4]} 33... Rxf3+ {[%clk 0:01:48.8]} 34. Kxf3 {[%clk 0:00:21.3]}
34... Kf8 {[%clk 0:01:47.3]} 35. Kf4 {[%clk 0:00:20.6]} 35... Ke7 {[%clk
0:01:44.4]} 36. g5 {[%clk 0:00:20.2]} 36... Nd7 {[%clk 0:01:44.6]} 37. Ba4
{[%clk 0:00:16.4]} 37... Kd6 {[%clk 0:01:42.9]} 38. Bb5 {[%clk 0:00:16.3]} 38...
Nf8 {[%clk 0:01:42.4]} 39. Kf5 {[%clk 0:00:15.8]} 39... Ne6 {[%clk 0:01:42.9]}
40. Be8 {[%clk 0:00:10.5]} 40... Nxd4+ {[%clk 0:01:41.3]} 41. Kf4 {[%clk
0:00:10.4]} 41... f6 {[%clk 0:01:39.8]} 0-1

[Event "Early-Titled-Tuesday-Blitz-August-29-2023"]
[Site "Chess.com"]
[Date "2023.08.29"]
[Round "9"]
[White "Aleksandar-Topalov"]
[Black "brm72"]
[Result "0-1"]
[WhiteElo "2366"]
[BlackElo "2565"]
[TimeControl "180+1"]
[EndTime "9:42:11 PDT"]
[Termination "brm72 won by resignation"]

1. b3 {[%clk 0:03:00.9]} 1... e5 {[%clk 0:02:48.3]} 2. Bb2 {[%clk 0:03:00.4]}
2... e4 {[%clk 0:02:47.7]} 3. c4 {[%clk 0:02:57.7]} 3... Nf6 {[%clk 0:02:44.9]}
4. Nc3 {[%clk 0:02:57.4]} 4... Nc6 {[%clk 0:02:44.5]} 5. e3 {[%clk 0:02:56]}
5... Bc5 {[%clk 0:02:40.2]} 6. a3 {[%clk 0:02:55.3]} 6... a5 {[%clk 0:02:40]} 7.
Qc2 {[%clk 0:02:55.6]} 7... Qe7 {[%clk 0:02:32.8]} 8. Nd5 {[%clk 0:02:55.4]}
8... Nxd5 {[%clk 0:02:22.9]} 9. cxd5 {[%clk 0:02:55.6]} 9... Na7 {[%clk
0:02:20.3]} 10. Bxg7 {[%clk 0:02:53.6]} 10... Rg8 {[%clk 0:02:20.4]} 11. Bb2
{[%clk 0:02:51.8]} 11... d6 {[%clk 0:02:18.2]} 12. Ne2 {[%clk 0:02:44.4]} 12...
Bf5 {[%clk 0:02:08.6]} 13. Nf4 {[%clk 0:02:37.9]} 13... O-O-O {[%clk 0:01:54.2]}
14. b4 {[%clk 0:02:31.8]} 14... axb4 {[%clk 0:01:53.5]} 15. axb4 {[%clk
0:02:32]} 15... Bb6 {[%clk 0:01:52.8]} 16. Qc4 {[%clk 0:02:18.5]} 16... Kb8
{[%clk 0:01:48.9]} 17. Bd4 {[%clk 0:02:12.1]} 17... Bxd4 {[%clk 0:01:30.4]} 18.
Qxd4 {[%clk 0:02:12.1]} 18... Nc8 {[%clk 0:01:30.8]} 19. Qc3 {[%clk 0:01:55]}
19... Qe5 {[%clk 0:01:27.6]} 20. Qa3 {[%clk 0:01:54]} 20... Nb6 {[%clk
0:01:23.9]} 21. Bb5 {[%clk 0:01:51.8]} 21... c6 {[%clk 0:01:16.3]} 22. Qa7+
{[%clk 0:01:44.4]} 22... Kc7 {[%clk 0:01:16]} 23. Bxc6 {[%clk 0:01:41.6]} 23...
Rb8 {[%clk 0:00:50.3]} 24. Ra6 {[%clk 0:01:31.1]} 24... Nc8 {[%clk 0:00:30.5]}
25. b5 {[%clk 0:00:24.1]} 25... Nxa7 {[%clk 0:00:28]} 26. Rxa7 {[%clk
0:00:24.6]} 26... Kb6 {[%clk 0:00:27.9]} 0-1

[Event "Early-Titled-Tuesday-Blitz-August-29-2023"]
[Site "Chess.com"]
[Date "2023.08.29"]
[Round "9"]
[White "tk22h"]
[Black "Miguelitro69"]
[Result "1-0"]
[WhiteElo "2424"]
[BlackElo "2291"]
[TimeControl "180+1"]
[EndTime "9:42:12 PDT"]
[Termination "tk22h won by resignation"]

1. c4 {[%clk 0:02:59.9]} 1... e5 {[%clk 0:02:56.4]} 2. Nc3 {[%clk 0:02:59.4]}
2... Nf6 {[%clk 0:02:57]} 3. Nf3 {[%clk 0:02:59.1]} 3... Nc6 {[%clk 0:02:57.3]}
4. g3 {[%clk 0:02:59.3]} 4... d5 {[%clk 0:02:57.6]} 5. cxd5 {[%clk 0:02:59.4]}
5... Nxd5 {[%clk 0:02:58.3]} 6. Bg2 {[%clk 0:02:59.8]} 6... Nb6 {[%clk
0:02:58.3]} 7. O-O {[%clk 0:02:59.8]} 7... Be7 {[%clk 0:02:58.9]} 8. b3 {[%clk
0:03:00.2]} 8... O-O {[%clk 0:02:59.4]} 9. Bb2 {[%clk 0:03:00.5]} 9... Be6
{[%clk 0:02:49.2]} 10. Rc1 {[%clk 0:02:59.9]} 10... f5 {[%clk 0:02:38]} 11. d3
{[%clk 0:02:57.9]} 11... Bf6 {[%clk 0:02:33.1]} 12. e4 {[%clk 0:02:55.6]} 12...
f4 {[%clk 0:02:24.3]} 13. Nd5 {[%clk 0:02:52.9]} 13... Nxd5 {[%clk 0:02:22.3]}
14. exd5 {[%clk 0:02:53.1]} 14... Bxd5 {[%clk 0:02:21.6]} 15. Re1 {[%clk
0:02:49.2]} 15... Qd6 {[%clk 0:02:17.9]} 16. Qc2 {[%clk 0:02:44]} 16... Rad8
{[%clk 0:02:07.8]} 17. Qc5 {[%clk 0:02:43.7]} 17... fxg3 {[%clk 0:01:50.7]} 18.
hxg3 {[%clk 0:02:43.8]} 18... Bxf3 {[%clk 0:01:47.8]} 19. Qxd6 {[%clk
0:02:37.1]} 19... cxd6 {[%clk 0:01:38.3]} 20. Bxf3 {[%clk 0:02:36.7]} 20... Bg5
{[%clk 0:01:32.9]} 21. Bd5+ {[%clk 0:02:31.6]} 21... Kh8 {[%clk 0:01:32.9]} 22.
Rc4 {[%clk 0:02:31.2]} 22... a5 {[%clk 0:01:23]} 23. Bxc6 {[%clk 0:02:25.5]}
23... bxc6 {[%clk 0:01:23.9]} 24. Rxc6 {[%clk 0:02:25.7]} 24... h5 {[%clk
0:01:21.2]} 25. d4 {[%clk 0:02:25.8]} 25... Rc8 {[%clk 0:00:51.9]} 26. Rxc8
{[%clk 0:02:23.9]} 26... Rxc8 {[%clk 0:00:51.4]} 27. dxe5 {[%clk 0:02:24.3]}
27... dxe5 {[%clk 0:00:44.2]} 28. Rxe5 {[%clk 0:02:23.1]} 28... Bd2 {[%clk
0:00:17.8]} 29. Rxh5+ {[%clk 0:02:20.2]} 29... Kg8 {[%clk 0:00:17.5]} 30. Rd5
{[%clk 0:02:20.2]} 30... Rc2 {[%clk 0:00:17.3]} 31. Bd4 {[%clk 0:02:19.1]} 31...
Rxa2 {[%clk 0:00:15.6]} 32. Rd7 {[%clk 0:02:18.8]} 32... g5 {[%clk 0:00:12.5]}
33. Kg2 {[%clk 0:02:15.5]} 33... Kf8 {[%clk 0:00:10.5]} 34. Kf3 {[%clk
0:02:14.9]} 34... Ke8 {[%clk 0:00:09.7]} 35. Rd5 {[%clk 0:02:14]} 35... Kf7
{[%clk 0:00:08.9]} 36. Rb5 {[%clk 0:02:10.1]} 36... Ke6 {[%clk 0:00:08.9]} 37.
Kg4 {[%clk 0:02:09.1]} 37... Be1 {[%clk 0:00:07.5]} 38. Rxg5 {[%clk 0:02:01]}
38... Bxf2 {[%clk 0:00:06.8]} 39. Bxf2 {[%clk 0:02:00.5]} 39... Rxf2 {[%clk
0:00:06.1]} 40. Rxa5 {[%clk 0:02:01]} 40... Rb2 {[%clk 0:00:05.1]} 41. Rb5
{[%clk 0:02:00.7]} 41... Kd6 {[%clk 0:00:04.8]} 42. Kf4 {[%clk 0:02:00.6]} 42...
Kc6 {[%clk 0:00:05]} 43. Rb8 {[%clk 0:02:00.4]} 43... Kc7 {[%clk 0:00:05.2]} 44.
Rb4 {[%clk 0:02:00.4]} 44... Kc6 {[%clk 0:00:05.5]} 45. g4 {[%clk 0:01:57.1]}
45... Kc5 {[%clk 0:00:05.8]} 46. Rb8 {[%clk 0:01:56.9]} 46... Kd6 {[%clk
0:00:05.3]} 47. Kf5 {[%clk 0:01:56]} 47... Rf2+ {[%clk 0:00:04.7]} 48. Kg6
{[%clk 0:01:56.1]} 48... Ke6 {[%clk 0:00:03.8]} 49. g5 {[%clk 0:01:56.4]} 49...
Rg2 {[%clk 0:00:03.7]} 50. Re8+ {[%clk 0:01:56.1]} 50... Kd7 {[%clk 0:00:03.5]}
51. Re3 {[%clk 0:01:55.9]} 51... Rg4 {[%clk 0:00:02.9]} 52. Kf5 {[%clk
0:01:54.3]} 52... Rb4 {[%clk 0:00:02.6]} 53. g6 {[%clk 0:01:54]} 53... Rb5+
{[%clk 0:00:03]} 54. Kf6 {[%clk 0:01:54.3]} 54... Rb8 {[%clk 0:00:02.8]} 55. g7
{[%clk 0:01:53.8]} 55... Rg8 {[%clk 0:00:02.8]} 56. Kf7 {[%clk 0:01:54]} 56...
Rxg7+ {[%clk 0:00:03.2]} 57. Kxg7 {[%clk 0:01:53.8]} 1-0